bitfinex/quotes_BTCUSD_20220111
["timestamp","ask_amount","ask_price","bid_price","bid_amount"]
[1641886304213,0.001,42216.0,42212.0,0.05985289]
[1641886304412,0.00185388,42216.0,42212.0,0.00062189]
[1641886305413,0.014,42216.0,42212.0,0.00562189]
[1641886305613,0.01385388,42216.0,42212.0,0.00562189]
[1641886306716,0.013,42216.0,42212.0,0.00562189]
[1641886306915,0.01385388,42216.0,42212.0,0.00562189]
[1641886307262,0.00085388,42216.0,42212.0,0.00062189]
[1641886307867,0.127,42218.0,42212.0,0.00062189]
[1641886308068,0.00085388,42216.0,42212.0,0.05985389]
[1641886308263,0.00085388,42216.0,42212.0,0.00062189]
[1641886308465,0.06009129,42216.0,42212.0,0.00062189]
[1641886308662,0.06009129,42216.0,42214.0,0.00061975]
[1641886308862,0.372045,42215.0,42214.0,0.00061975]
[1641886309064,0.37918053,42215.0,42214.0,0.00061975]
[1641886312321,0.40118053,42215.0,42214.0,0.00061975]
[1641886313626,0.56318053,42215.0,42214.0,0.00061975]
[1641886313826,0.51318053,42215.0,42214.0,0.00061975]
[1641886314025,0.47918053,42215.0,42214.0,0.00061975]
[1641886314425,0.37918053,42215.0,42214.0,0.00061975]
[1641886315868,0.37918053,42215.0,42205.0,0.35896895]
[1641886316067,0.00713553,42215.0,42207.0,0.059237]
[1641886316268,0.02013553,42215.0,42207.0,0.059237]
[1641886316468,0.00085391,42212.0,42207.0,0.059237]
[1641886316869,0.24351672,42212.0,42207.0,0.39119187]
[1641886317468,0.24266281,42212.0,42207.0,0.39119187]
[1641886317668,0.24351673,42212.0,42207.0,0.42319187]
[1641886318516,0.00085392,42212.0,42207.0,0.42319187]
[1641886318716,0.01613553,42215.0,42207.0,0.42319187]
[1641886318916,0.00085392,42212.0,42207.0,0.42319187]
[1641886319318,0.00085392,42212.0,42207.0,0.39119187]
[1641886319917,0.00713553,42215.0,42207.0,0.39119187]
[1641886320118,0.00085392,42212.0,42207.0,0.39119187]
[1641886320719,0.00085392,42212.0,42210.0,0.28411865]
[1641886321132,0.00713553,42215.0,42211.0,1.18736202]
[1641886321323,0.00085391,42213.0,42212.0,0.059224]
[1641886321520,0.00085391,42213.0,42212.0,0.860397]
[1641886322372,0.00713553,42215.0,42212.0,0.860397]
[1641886322571,0.00798942,42215.0,42214.0,0.33260897]
[1641886322772,0.00798942,42215.0,42212.0,0.059224]
[1641886323572,0.01913553,42215.0,42212.0,0.068224]
[1641886323770,0.01913553,42215.0,42213.0,0.94183816]
[1641886324169,0.01913553,42215.0,42213.0,0.33839468]
[1641886324372,0.01913553,42215.0,42212.0,0.67166748]
[1641886325170,0.00713553,42215.0,42212.0,0.66266748]
[1641886325371,0.00713553,42215.0,42212.0,0.60344348]
[1641886325772,0.01913553,42215.0,42213.0,0.28570504]
[1641886327417,0.01913553,42215.0,42212.0,0.009]
[1641886327718,0.02113553,42215.0,42213.0,0.007]
[1641886329214,0.372045,42214.0,42210.0,0.0282]
[1641886329415,0.31342703,42213.0,42210.0,0.0282]
[1641886331272,0.29830703,42213.0,42210.0,0.0282]
[1641886331874,0.30230703,42213.0,42210.0,0.0482]
[1641886332874,0.30230703,42213.0,42210.0,0.02]
[1641886333074,0.30230703,42213.0,42208.0,0.32277489]
[1641886333275,0.29830703,42213.0,42208.0,0.32277489]
[1641886334318,0.30230703,42213.0,42210.0,0.02]
[1641886334517,0.30316094,42213.0,42210.0,0.02]
[1641886335218,0.30316094,42213.0,42210.0,0.00489609]
[1641886335417,0.30230703,42213.0,42210.0,0.00489609]
[1641886335818,0.29830703,42213.0,42208.0,0.32277489]
[1641886336723,0.30230703,42213.0,42210.0,0.02]
[1641886336918,0.30316094,42213.0,42210.0,0.02]
[1641886337977,0.67556136,42213.0,42210.0,0.035]
[1641886338179,0.372045,42212.0,42210.0,0.015]
[1641886339177,0.67156136,42213.0,42210.0,0.015]
[1641886339382,0.30416094,42213.0,42210.0,0.015]
[1641886339577,0.30416094,42213.0,42210.0,0.61844348]
[1641886339777,0.29916094,42213.0,42210.0,0.60344348]
[1641886340178,0.29830703,42213.0,42210.0,0.60344348]
[1641886342020,0.30330703,42213.0,42210.0,0.61844348]
[1641886343518,0.25918903,42213.0,42210.0,0.61844348]
[1641886343719,0.25418903,42213.0,42210.0,0.60344348]
[1641886344119,0.25418903,42213.0,42211.0,0.60344348]
[1641886344524,0.0008539,42214.0,42211.0,0.60344348]
[1641886344773,0.005,42213.0,42211.0,0.60344348]
[1641886345265,0.007029,42213.0,42211.0,0.60344348]
[1641886345865,0.017029,42213.0,42211.0,0.60744348]
[1641886347468,0.002029,42213.0,42211.0,0.57844348]
[1641886347668,0.002029,42213.0,42211.0,0.63766948]
[1641886348068,0.002029,42213.0,42211.0,0.57844348]
[1641886349915,0.012029,42213.0,42211.0,0.58244348]
[1641886351521,0.002029,42213.0,42211.0,0.57844348]
[1641886351920,0.012029,42213.0,42211.0,0.58244348]
[1641886352769,0.032029,42213.0,42211.0,0.58244348]
[1641886355371,0.032029,42213.0,42211.0,0.57844348]
[1641886355372,0.022029,42213.0,42211.0,0.57844348]
[1641886355572,0.022029,42213.0,42212.0,0.372045]
[1641886355772,0.022029,42213.0,42211.0,0.57844348]
[1641886356514,0.022029,42213.0,42212.0,0.57844348]
[1641886357915,0.022029,42213.0,42211.0,0.57844348]
[1641886358114,0.051029,42213.0,42211.0,0.57844348]
[1641886359967,0.022029,42213.0,42211.0,0.57844348]
[1641886360566,0.022029,42213.0,42211.0,0.58244348]
[1641886360966,0.032029,42213.0,42211.0,0.58244348]
[1641886362565,0.032029,42213.0,42211.0,0.004]
[1641886363817,0.032029,42213.0,42211.0,0.58244348]
[1641886364819,0.032029,42213.0,42211.0,0.004]
[1641886365219,0.032029,42213.0,42210.0,0.57844348]
[1641886365425,0.022029,42213.0,42211.0,0.57844348]
[1641886366219,0.022029,42213.0,42208.0,0.79788149]
[1641886366819,0.02282001,42213.0,42209.0,0.05]
[1641886367019,0.02282001,42213.0,42211.0,0.004]
[1641886367020,0.03282001,42213.0,42211.0,0.004]
[1641886367968,0.032029,42213.0,42211.0,0.004]
[1641886368367,0.032029,42213.0,42211.0,0.063227]
[1641886368766,0.042029,42213.0,42211.0,0.067227]
[1641886368967,0.032029,42213.0,42211.0,0.063227]
[1641886369171,0.032029,42213.0,42211.0,0.004]
[1641886369767,0.032029,42213.0,42211.0,0.054]
[1641886370572,0.022029,42213.0,42211.0,0.05]
[1641886370768,0.022029,42213.0,42210.0,0.118456]
[1641886371720,0.022029,42213.0,42209.0,0.70401739]
[1641886371918,0.022029,42213.0,42208.0,0.70401739]
[1641886372519,0.022029,42213.0,42208.0,0.79788055]
[1641886372520,0.00121644,42211.0,42208.0,0.79788055]
[1641886372719,0.30579798,42210.0,42208.0,0.79788055]
[1641886372921,0.0473,42209.0,42208.0,0.79788055]
[1641886373125,0.0473,42209.0,42208.0,0.70401739]
[1641886373321,0.0473,42209.0,42207.0,0.0998]
[1641886373520,0.372045,42208.0,42207.0,0.0998]
[1641886373721,0.419345,42208.0,42207.0,0.0998]
[1641886374323,0.419345,42208.0,42207.0,0.0748]
[1641886374522,0.75850575,42208.0,42207.0,0.0748]
[1641886375369,0.77050575,42208.0,42207.0,0.0748]
[1641886376970,0.75850575,42208.0,42207.0,0.0748]
[1641886377270,0.77050575,42208.0,42207.0,0.0748]
[1641886378376,0.75850575,42208.0,42207.0,0.0748]
[1641886379426,0.429345,42208.0,42207.0,0.0748]
[1641886380228,0.0573,42208.0,42207.0,0.0748]
[1641886381032,0.0703,42208.0,42207.0,0.0748]
[1641886381428,0.0473,42208.0,42207.0,0.0748]
[1641886383169,0.0603,42208.0,42207.0,0.0748]
[1641886384771,0.0473,42208.0,42207.0,0.1248]
[1641886385172,0.0563,42208.0,42207.0,0.1278]
[1641886385774,0.0563,42208.0,42207.0,0.0778]
[1641886386424,0.0473,42208.0,42207.0,0.0748]
[1641886387024,0.0603,42208.0,42207.0,0.0748]
[1641886388426,0.0473,42208.0,42207.0,0.0748]
[1641886389027,0.0603,42208.0,42207.0,0.0748]
[1641886390287,0.0473,42208.0,42207.0,0.0748]
[1641886391188,0.0553,42208.0,42207.0,0.0758]
[1641886392791,0.0473,42208.0,42207.0,0.0748]
[1641886393193,0.0553,42208.0,42207.0,0.0748]
[1641886394426,0.0473,42208.0,42207.0,0.0748]
[1641886394626,0.049329,42208.0,42207.0,0.0748]
[1641886395231,0.064329,42208.0,42207.0,0.0748]
[1641886396932,0.049329,42208.0,42207.0,0.0748]
[1641886397372,0.064329,42208.0,42207.0,0.0748]
[1641886399277,0.061329,42208.0,42207.0,0.0748]
[1641886399875,0.061329,42208.0,42207.0,0.1248]
[1641886400676,0.061329,42208.0,42207.0,0.0748]
[1641886400876,0.049329,42208.0,42207.0,0.0748]
[1641886401121,0.062329,42208.0,42207.0,0.0788]
[1641886403221,0.062329,42208.0,42207.0,0.0768]
[1641886404424,0.06106654,42208.0,42207.0,0.0768]
[1641886404873,0.04806654,42208.0,42207.0,0.0748]
[1641886405276,0.05806654,42208.0,42207.0,0.0808]
[1641886405674,0.05806654,42208.0,42207.0,0.1308]
[1641886405875,0.05806654,42208.0,42207.0,0.0808]
[1641886407275,0.06606654,42208.0,42207.0,0.0808]
[1641886407478,0.05606654,42208.0,42207.0,0.0748]
[1641886409122,0.026029,42208.0,42207.0,0.0748]
[1641886409322,0.018029,42208.0,42207.0,0.0748]
[1641886410723,0.038029,42208.0,42207.0,0.0748]
[1641886411124,0.037029,42208.0,42207.0,0.0748]
[1641886414710,0.022029,42208.0,42207.0,0.0748]
[1641886415706,0.037029,42208.0,42207.0,0.0748]
[1641886417329,0.036029,42208.0,42207.0,0.0748]
[1641886419229,0.052029,42208.0,42207.0,0.0748]
[1641886419430,0.038029,42208.0,42207.0,0.0748]
[1641886420477,0.022029,42208.0,42207.0,0.0748]
[1641886421777,0.038029,42208.0,42207.0,0.0748]
[1641886423279,0.043029,42208.0,42207.0,0.0748]
[1641886424931,0.422029,42208.0,42207.0,0.0748]
[1641886425328,0.794074,42208.0,42207.0,0.0748]
[1641886425728,0.807074,42208.0,42207.0,0.0748]
[1641886426329,0.402074,42208.0,42207.0,0.0748]
[1641886427128,0.389074,42208.0,42207.0,0.0748]
[1641886427381,0.400074,42208.0,42207.0,0.0748]
[1641886428580,0.389074,42208.0,42207.0,0.0748]
[1641886429384,0.400074,42208.0,42207.0,0.0748]
[1641886431025,0.389074,42208.0,42207.0,0.0748]
[1641886431425,0.401074,42208.0,42207.0,0.0748]
[1641886432729,0.40230633,42208.0,42207.0,0.0748]
[1641886432927,0.40944269,42208.0,42207.0,0.0748]
[1641886433328,0.77160101,42208.0,42199.0,0.70401739]
[1641886433530,0.3733272,42204.0,42199.0,0.70401739]
[1641886433730,0.35924002,42200.0,42198.0,0.70401739]
[1641886433928,0.0473,42199.0,42198.0,0.57163272]
[1641886434330,0.0473,42199.0,42193.0,0.00056414]
[1641886434331,0.29530724,42199.0,42193.0,0.00056414]
[1641886434531,0.36282703,42194.0,42193.0,0.00056414]
[1641886434784,0.41012703,42194.0,42193.0,0.00056414]
[1641886435174,0.41012703,42194.0,42190.0,0.42]
[1641886435379,0.41012703,42194.0,42191.0,0.00056423]
[1641886436377,0.41012703,42194.0,42190.0,0.42]
[1641886436575,0.0473,42194.0,42190.0,0.42056425]
[1641886437677,0.0473,42194.0,42190.0,0.42056423]
[1641886438525,0.27342127,42192.0,42190.0,0.42056423]
[1641886438727,0.02656666,42192.0,42190.0,0.42]
[1641886438927,0.03370596,42192.0,42190.0,0.42056423]
[1641886439126,0.03370596,42192.0,42191.0,0.372045]
[1641886439726,0.05170596,42192.0,42191.0,0.62916192]
[1641886440126,0.05170596,42192.0,42191.0,0.372045]
[1641886440732,0.07170596,42192.0,42191.0,0.372045]
[1641886440928,0.05370596,42192.0,42191.0,0.372045]
[1641886441929,0.07170596,42192.0,42190.0,0.42]
[1641886443077,0.05370596,42192.0,42190.0,0.42]
[1641886443674,0.05670596,42192.0,42190.0,0.42]
[1641886444877,0.05370596,42192.0,42190.0,0.42]
[1641886445076,0.05370596,42192.0,42191.0,0.822045]
[1641886445477,0.05370596,42192.0,42191.0,0.372045]
[1641886445682,0.05670596,42192.0,42191.0,0.372045]
[1641886445879,0.05670596,42192.0,42190.0,0.42]
[1641886447226,0.0301393,42192.0,42190.0,0.42]
[1641886447628,0.0271393,42192.0,42190.0,0.42]
[1641886448029,0.0331393,42192.0,42191.0,1.122045]
[1641886448232,0.0331393,42192.0,42191.0,1.82372712]
[1641886448429,0.0331393,42192.0,42191.0,1.07372712]
[1641886448830,0.0331393,42192.0,42191.0,0.72612977]
[1641886449231,0.0271393,42192.0,42191.0,0.72612977]
[1641886449876,0.0341393,42192.0,42191.0,0.372045]
[1641886450279,0.0341393,42192.0,42190.0,0.42]
[1641886450982,0.0271393,42192.0,42191.0,0.372045]
[1641886451178,0.0271393,42192.0,42190.0,0.42]
[1641886451581,0.0271393,42192.0,42191.0,0.372045]
[1641886451780,0.0271393,42192.0,42190.0,0.42]
[1641886452181,0.0311393,42192.0,42190.0,0.42]
[1641886452380,0.0311393,42192.0,42191.0,0.372045]
[1641886452780,0.0311393,42192.0,42191.0,0.72195884]
[1641886452979,0.0271393,42192.0,42191.0,0.372045]
[1641886453829,0.0291393,42192.0,42191.0,0.372045]
[1641886454632,0.0291393,42192.0,42191.0,0.72257849]
[1641886455029,0.0271393,42192.0,42191.0,0.372045]
[1641886455830,0.0361393,42192.0,42191.0,0.72789996]
[1641886457033,0.0271393,42192.0,42191.0,0.72789996]
[1641886457284,0.0271393,42192.0,42191.0,0.372045]
[1641886457475,0.0271393,42192.0,42190.0,0.42]
[1641886457675,0.0311393,42192.0,42190.0,0.42]
[1641886458676,0.0311393,42192.0,42191.0,0.35052899]
[1641886458879,0.0311393,42192.0,42191.0,0.00052899]
[1641886459076,0.0271393,42192.0,42191.0,0.00052899]
[1641886459479,0.0271393,42192.0,42191.0,0.37257399]
[1641886459675,0.0311393,42192.0,42191.0,0.37257399]
[1641886461031,0.0271393,42192.0,42191.0,0.37257399]
[1641886461730,0.0301393,42192.0,42191.0,0.37257399]
[1641886463033,0.0271393,42192.0,42191.0,0.37257399]
[1641886463734,0.0361393,42192.0,42191.0,0.37257399]
[1641886464536,0.0361393,42192.0,42191.0,0.00052899]
[1641886464975,0.0271393,42192.0,42191.0,0.00052899]
[1641886467777,0.0271393,42192.0,42190.0,0.40777803]
[1641886468829,0.0271393,42192.0,42191.0,0.00052899]
[1641886471133,0.0271393,42192.0,42191.0,0.37257399]
[1641886472132,0.0271393,42192.0,42191.0,0.71743335]
[1641886472384,0.0034232,42196.0,42192.0,1.25]
[1641886472582,0.0061932,42197.0,42193.0,0.372045]
[1641886472784,0.0061932,42197.0,42194.0,0.57430958]
[1641886472980,0.00079051,42199.0,42195.0,0.46499859]
[1641886473180,0.00079051,42199.0,42197.0,0.46283296]
[1641886473379,0.00079051,42199.0,42198.0,0.7385187]
[1641886473581,0.24859216,42205.0,42202.0,0.30924801]
[1641886474381,0.29093636,42208.0,42202.0,0.30924801]
[1641886474583,0.29093636,42208.0,42199.0,0.24533372]
[1641886474784,0.29093636,42208.0,42198.0,0.3664737]
[1641886474982,0.00079053,42205.0,42200.0,0.059241]
[1641886475583,0.00079053,42205.0,42200.0,0.39351667]
[1641886475782,0.25214771,42205.0,42200.0,0.39351667]
[1641886476031,0.25135718,42205.0,42200.0,0.39351667]
[1641886476234,0.01122203,42204.0,42200.0,0.39351667]
[1641886476432,0.01122203,42204.0,42200.0,0.059241]
[1641886477336,0.01122204,42204.0,42200.0,0.059241]
[1641886477732,0.01122204,42204.0,42200.0,0.37045595]
[1641886478132,0.01122204,42204.0,42200.0,0.059241]
[1641886478334,0.0104315,42204.0,42200.0,0.059241]
[1641886478533,0.01122204,42204.0,42200.0,0.059241]
[1641886479133,0.01122204,42204.0,42200.0,0.109241]
[1641886479332,0.01122204,42204.0,42200.0,0.37211465]
[1641886479887,0.01122204,42204.0,42200.0,0.32211465]
[1641886480684,0.0104315,42204.0,42200.0,0.32211465]
[1641886480884,0.01122204,42204.0,42200.0,0.32211465]
[1641886481888,0.0104315,42204.0,42200.0,0.32211465]
[1641886482085,0.01122204,42204.0,42200.0,0.32211465]
[1641886482285,0.01122204,42204.0,42200.0,0.37211465]
[1641886482491,0.00079054,42204.0,42201.0,0.04291679]
[1641886482686,0.00079054,42204.0,42200.0,0.37211465]
[1641886483087,0.5739,42211.0,42204.0,0.03500208]
[1641886483389,0.5739,42211.0,42207.0,0.118467]
[1641886483631,0.3112,42215.0,42207.0,0.118467]
[1641886483831,0.372045,42214.0,42207.0,0.118467]
[1641886484034,0.372045,42214.0,42207.0,0.168467]
[1641886484232,0.372045,42214.0,42207.0,0.118467]
[1641886484434,0.00079048,42213.0,42207.0,0.118467]
[1641886484633,0.2891046,42211.0,42207.0,0.118467]
[1641886484833,0.372045,42210.0,42207.0,0.118467]
[1641886494883,0.28989509,42211.0,42207.0,0.168467]
[1641886494884,0.00079049,42211.0,42207.0,0.168467]
[1641886495083,0.38849769,42215.0,42207.0,0.168467]
[1641886495285,0.00079049,42211.0,42207.0,0.168467]
[1641886496284,0.58542829,42215.0,42207.0,0.168067]
[1641886496485,0.00079049,42211.0,42207.0,0.167667]
[1641886496886,0.00079049,42211.0,42207.0,0.167267]
[1641886497085,0.00079049,42211.0,42207.0,0.166867]
[1641886497485,0.63542829,42215.0,42207.0,0.166467]
[1641886497686,0.00079049,42211.0,42207.0,0.166067]
[1641886497886,0.00079049,42211.0,42207.0,0.165667]
[1641886498727,0.63542829,42215.0,42207.0,0.165667]
[1641886498928,0.00079049,42211.0,42207.0,0.165667]
[1641886499227,0.00079049,42211.0,42209.0,0.059233]
[1641886499629,0.00079049,42211.0,42209.0,0.058833]
[1641886499828,0.00079049,42211.0,42209.0,0.058433]
[1641886500128,0.32422829,42215.0,42209.0,0.058033]
[1641886500129,0.00079048,42212.0,42209.0,0.058033]
[1641886500328,0.372045,42211.0,42209.0,0.058033]
[1641886500530,0.372045,42211.0,42209.0,0.057633]
[1641886501130,0.32422829,42215.0,42209.0,0.057633]
[1641886501330,0.00079048,42212.0,42209.0,0.057633]
[1641886502286,0.32422829,42215.0,42209.0,0.057633]
[1641886502482,0.00079048,42213.0,42209.0,0.057633]
[1641886502682,0.372045,42212.0,42209.0,0.057633]
[1641886502981,0.372045,42212.0,42209.0,0.057233]
[1641886503183,0.372045,42212.0,42209.0,0.056833]
[1641886503384,0.372045,42212.0,42209.0,0.056433]
[1641886504182,0.00079048,42213.0,42209.0,0.3828559]
[1641886504385,0.00079048,42213.0,42209.0,0.42098159]
[1641886504783,0.32422829,42215.0,42209.0,0.42098159]
[1641886504984,0.00079048,42213.0,42209.0,0.42098159]
[1641886506035,0.27422829,42215.0,42210.0,0.05]
[1641886506234,0.00079048,42213.0,42210.0,0.0496]
[1641886507036,0.00079048,42213.0,42211.0,0.43599356]
[1641886507235,0.27422829,42215.0,42211.0,0.43599356]
[1641886507236,0.00079047,42214.0,42211.0,0.43559356]
[1641886507436,0.00079047,42214.0,42211.0,0.43519356]
[1641886507636,0.00079047,42214.0,42210.0,0.0488]
[1641886508036,0.00079047,42214.0,42211.0,0.046072]
[1641886508237,0.02729769,42215.0,42212.0,0.04581767]
[1641886508436,0.02729769,42215.0,42210.0,0.0488]
[1641886508437,0.372045,42214.0,42213.0,0.04653182]
[1641886508640,0.372045,42214.0,42212.0,0.118458]
[1641886508837,0.02808815,42215.0,42212.0,0.118458]
[1641886509036,0.02808815,42215.0,42214.0,0.0472972]
[1641886509236,0.40013315,42215.0,42212.0,0.168458]
[1641886509437,0.40013315,42215.0,42213.0,0.04369012]
[1641886509636,0.40013315,42215.0,42212.0,0.168458]
[1641886509637,0.39934269,42215.0,42214.0,0.03508648]
[1641886509883,0.39934269,42215.0,42212.0,0.168058]
[1641886510084,0.39934269,42215.0,42213.0,0.04292732]
[1641886510281,0.39934269,42215.0,42214.0,0.03580846]
[1641886510481,0.39934269,42215.0,42212.0,0.168058]
[1641886510682,0.39934269,42215.0,42213.0,0.04592826]
[1641886510882,0.39934269,42215.0,42214.0,0.03741488]
[1641886511082,0.39934269,42215.0,42212.0,0.167658]
[1641886511286,0.39934269,42215.0,42213.0,0.03459682]
[1641886511681,0.39934269,42215.0,42212.0,0.167658]
[1641886511884,0.39934269,42215.0,42213.0,0.26678337]
[1641886511885,0.372045,42215.0,42213.0,0.26678337]
[1641886512087,0.00079046,42216.0,42213.0,0.35921207]
[1641886512284,0.00079046,42216.0,42214.0,0.04146889]
[1641886513083,0.127,42218.0,42214.0,0.04106889]
[1641886513285,0.00079045,42217.0,42214.0,0.04066889]
[1641886513735,0.00079045,42217.0,42214.0,0.04026889]
[1641886514337,0.127,42218.0,42214.0,0.04026889]
[1641886514536,0.12779044,42218.0,42214.0,0.04026889]
[1641886515137,0.03061926,42216.0,42214.0,0.04026889]
[1641886515537,0.372045,42215.0,42214.0,0.04026889]
[1641886515738,0.03061926,42216.0,42214.0,0.04026889]
[1641886516337,0.03061926,42216.0,42214.0,0.03986889]
[1641886516539,0.03061926,42216.0,42214.0,0.03946889]
[1641886516937,0.03061926,42216.0,42214.0,0.03906889]
[1641886517401,0.03061926,42216.0,42214.0,0.03866889]
[1641886517600,0.03061926,42216.0,42214.0,0.03826889]
[1641886517804,0.03061926,42216.0,42214.0,0.03786889]
[1641886518702,0.03061926,42216.0,42214.0,0.03746889]
[1641886518901,0.03061926,42216.0,42214.0,0.03706889]
[1641886519106,0.03061926,42216.0,42214.0,0.03666889]
[1641886519605,0.00079045,42217.0,42214.0,0.38034653]
[1641886519804,0.00079045,42217.0,42214.0,0.08586889]
[1641886520204,0.00079045,42217.0,42214.0,0.03546889]
[1641886520405,0.127,42218.0,42215.0,0.05]
[1641886520604,0.12779044,42218.0,42214.0,0.03466889]
[1641886520805,0.17779044,42218.0,42214.0,0.03426889]
[1641886521435,0.177,42218.0,42214.0,0.03426889]
[1641886521638,0.177,42218.0,42214.0,0.03386889]
[1641886521835,0.17779044,42218.0,42214.0,0.03386889]
[1641886522036,0.17779044,42218.0,42214.0,0.03346889]
[1641886522537,0.17779044,42218.0,42214.0,0.03306889]
[1641886522736,0.177,42218.0,42214.0,0.03266889]
[1641886522937,0.17779044,42218.0,42214.0,0.03266889]
[1641886523137,0.17779044,42218.0,42214.0,0.03226889]
[1641886523939,0.177,42218.0,42214.0,0.03186889]
[1641886524142,0.17779044,42218.0,42215.0,0.39354322]
[1641886524340,0.17779044,42218.0,42215.0,0.04939938]
[1641886524538,0.17779044,42218.0,42213.0,0.109228]
[1641886524991,0.17779044,42218.0,42214.0,0.03950667]
[1641886525191,0.177,42218.0,42214.0,0.03910667]
[1641886525394,0.17779044,42218.0,42214.0,0.03910667]
[1641886525590,0.17779044,42218.0,42214.0,0.03870667]
[1641886525790,0.17779044,42218.0,42214.0,0.03830667]
[1641886526892,0.17779044,42218.0,42214.0,0.03790667]
[1641886527094,0.17779044,42218.0,42214.0,0.03750667]
[1641886527593,0.177,42218.0,42214.0,0.03710667]
[1641886527793,0.18879044,42218.0,42214.0,0.04210667]
[1641886528093,0.18879044,42218.0,42214.0,0.04170667]
[1641886528297,0.18879044,42218.0,42215.0,0.4611835]
[1641886528532,0.18879044,42218.0,42215.0,0.4607835]
[1641886528733,0.188,42218.0,42215.0,0.4607835]
[1641886528933,0.188,42218.0,42215.0,0.4603835]
[1641886529133,0.188,42218.0,42215.0,0.4599835]
[1641886529538,0.188,42218.0,42216.0,0.35430894]
[1641886529736,0.177,42218.0,42216.0,0.35390894]
[1641886529937,0.212,42218.0,42215.0,0.03590563]
[1641886530138,0.372045,42217.0,42215.0,0.03550563]
[1641886530737,0.372045,42217.0,42215.0,0.03510563]
[1641886530941,0.372045,42217.0,42215.0,0.03470563]
[1641886531139,0.372045,42217.0,42215.0,0.03070563]
[1641886531340,0.372045,42217.0,42215.0,0.04525746]
[1641886531539,0.372045,42217.0,42214.0,0.03550072]
[1641886531740,0.372045,42217.0,42214.0,0.03510072]
[1641886531942,0.035,42217.0,42215.0,0.04766257]
[1641886532141,0.035,42217.0,42215.0,0.39183879]
[1641886532386,0.035,42217.0,42215.0,0.09686257]
[1641886532586,0.035,42217.0,42215.0,0.04646257]
[1641886533085,0.17779044,42218.0,42215.0,0.04166257]
[1641886533286,0.372045,42217.0,42215.0,0.0338661]
[1641886533487,0.372045,42217.0,42213.0,0.109228]
[1641886533688,0.177,42218.0,42215.0,0.04717319]
[1641886533888,0.035,42217.0,42215.0,0.004]
[1641886534089,0.035,42217.0,42215.0,0.04457979]
[1641886534388,0.035,42217.0,42215.0,0.004]
[1641886535087,0.035,42217.0,42214.0,0.03499235]
[1641886535289,0.17779044,42218.0,42214.0,0.03499235]
[1641886535888,0.208,42218.0,42214.0,0.03999235]
[1641886536136,0.20879044,42218.0,42214.0,0.005]
[1641886537140,0.177,42218.0,42213.0,0.109228]
[1641886537338,0.17779044,42218.0,42213.0,0.109228]
[1641886537938,0.18879044,42218.0,42213.0,0.115228]
[1641886538139,0.13879044,42218.0,42213.0,0.115228]
[1641886538339,0.188,42218.0,42213.0,0.115228]
[1641886538539,0.18879044,42218.0,42213.0,0.115228]
[1641886539139,0.17779044,42218.0,42213.0,0.109228]
[1641886539340,0.23701531,42218.0,42213.0,0.109228]
[1641886539539,0.23622487,42218.0,42213.0,0.109228]
[1641886539784,0.23701531,42218.0,42213.0,0.109228]
[1641886539981,0.24801531,42218.0,42213.0,0.115228]
[1641886540385,0.18879044,42218.0,42213.0,0.115228]
[1641886540884,0.18879044,42218.0,42213.0,0.065228]
[1641886541085,0.17779044,42218.0,42213.0,0.059228]
[1641886541985,0.188,42218.0,42213.0,0.065228]
[1641886542187,0.38572131,42217.0,42213.0,0.065228]
[1641886542387,0.06636099,42217.0,42213.0,0.065228]
[1641886543184,0.06636099,42217.0,42213.0,0.059228]
[1641886543386,0.3886498,42217.0,42213.0,0.059228]
[1641886543834,0.372045,42216.0,42213.0,0.059228]
[1641886544034,0.08215144,42217.0,42213.0,0.065228]
[1641886544435,0.08136099,42217.0,42213.0,0.065228]
[1641886544635,0.08215144,42217.0,42213.0,0.006]
[1641886544834,0.40832348,42217.0,42213.0,0.006]
[1641886545235,0.39332348,42217.0,42212.0,0.82223432]
[1641886545535,0.39253303,42217.0,42212.0,0.82223432]
[1641886545735,0.06715144,42217.0,42212.0,0.118446]
[1641886545934,0.08815144,42217.0,42212.0,0.124446]
[1641886546336,0.372045,42216.0,42212.0,0.124446]
[1641886546535,0.08815144,42217.0,42212.0,0.124446]
[1641886546736,0.08736099,42217.0,42212.0,0.124446]
[1641886547036,0.00079046,42216.0,42212.0,0.124446]
[1641886547281,0.00079046,42216.0,42212.0,0.118446]
[1641886547886,0.034,42216.0,42212.0,0.124446]
[1641886548184,0.03479046,42216.0,42212.0,0.124446]
[1641886549287,0.00079045,42216.0,42212.0,0.118446]
[1641886549887,0.03679045,42216.0,42212.0,0.124446]
[1641886550087,0.03679045,42216.0,42212.0,0.82823432]
[1641886550296,0.0035036,42215.0,42212.0,0.70858253]
[1641886550688,0.0035036,42215.0,42212.0,0.00479421]
[1641886551144,0.0035036,42215.0,42212.0,0.36047604]
[1641886551344,0.25124898,42213.0,42192.0,0.5901729]
[1641886551540,0.25124898,42213.0,42186.0,0.09265087]
[1641886551541,0.0103,42200.0,42186.0,0.09265087]
[1641886551743,0.00123573,42194.0,42186.0,0.09265087]
[1641886551941,0.591,42187.0,42186.0,0.09265087]
[1641886552139,0.591,42187.0,42179.0,0.0011]
[1641886552140,1.060345,42187.0,42181.0,0.09265087]
[1641886552347,0.43695484,42184.0,42181.0,0.09265087]
[1641886552543,0.591,42182.0,42181.0,0.09265087]
[1641886552740,1.42824518,42182.0,42181.0,0.09265087]
[1641886553143,1.42824518,42182.0,42180.0,0.00033547]
[1641886553342,2.32966784,42181.0,42180.0,0.00033547]
[1641886553542,2.57696784,42181.0,42180.0,0.00033547]
[1641886553747,1.21159586,42181.0,42180.0,0.00033547]
[1641886553942,1.21159586,42181.0,42179.0,0.0011]
[1641886554143,0.372045,42180.0,42179.0,0.0011]
[1641886554344,0.419345,42180.0,42179.0,0.0011]
[1641886555095,0.73501513,42180.0,42179.0,0.0011]
[1641886555893,0.74501513,42180.0,42179.0,0.0011]
[1641886556094,0.84501513,42180.0,42179.0,0.0011]
[1641886556496,0.60864086,42179.0,42177.0,0.00062926]
[1641886556695,1.37735618,42178.0,42177.0,0.00062926]
[1641886556896,1.378563,42178.0,42177.0,0.00062926]
[1641886557095,1.16869615,42178.0,42177.0,0.00062926]
[1641886557295,1.53570733,42178.0,42177.0,0.00062926]
[1641886557494,1.53570733,42178.0,42171.0,0.0011]
[1641886557696,0.591,42176.0,42175.0,0.00062931]